[Event "VIII Open Semana Santa 2024"]
[Site "San Vicente del Raspeig"]
[Date "2024.03.28"]
[Round "3.14"]
[White "Garriga Cazorla, Pere"]
[Black "Davtyan, David Arm."]
[Result "1-0"]
[ECO "D35"]
[WhiteElo "2460"]
[BlackElo "2311"]
[Annotator "TA"]
[PlyCount "50"]
[EventDate "2024.03.27"]
[EventType "swiss"]
[EventCountry "ESP"]
[SourceTitle "playchess.com"]
[Source "ChessBase"]
[SourceQuality "1"]
[TimeControl "5400+30"]

{[%evp 12,50,24,32,42,36,33,26,18,11,15,33,15,27,42,31,47,59,41,53,54,0,14,3,0,24,153,184,175,162,152,156,213,213,202,202,263,250,244,220,786]} 1. d4 {[%emt 0:03:04]} d5 {[%emt 0:06:05]} 2. c4 {[%emt 0:00:43]} e6 {[%emt 0:00:35]} 3. Nc3 {[%emt 0:00:16]} Nf6 {[%emt 0:00:11]} 4. cxd5 {[%emt 0:00:07]} exd5 {[%emt 0:00:13]} 5. Bg5 {[%emt 0:00:06][%cal Bc1g5,Bg5h4,Bh4g3][%mdl 32]} Bb4 {[%emt 0:00:09]} 6. e3 {[%emt 0:00:26]} h6 {[%emt 0:00:59]} 7. Bh4 {[%emt 0:00:07]} g5 {[%emt 0:01:04]} 8. Bg3 {[%emt 0:00:12]} Ne4 {[%emt 0:00:05]} 9. a3 {[%emt 0:08:32]} Bxc3+ {[%emt 0:10:19] White has an edge.} 10. bxc3 {[%emt 0:01:20]} h5 {[%emt 0:04:38][%cal Oh5h4]} 11. f3 {[%emt 0:00:49]} Nxg3 {[%emt 0:02:11]} 12. hxg3 {[%emt 0:00:06]} Qd6 {[%emt 0:02:56]} 13. Kf2 {[%emt 0:02:37]} Nc6 {[%emt 0:02:20]} 14. c4 {[%emt 0:05:11]} dxc4 {[%emt 0:20:51]} 15. Bxc4 {[%emt 0:03:01]} Be6 {[%emt 0:01:12]} 16. Rc1 {[%emt 0:04:33]} (16. Bb5 $14) 16... O-O-O {[%emt 0:15:06]} 17. Ne2 {[%emt 0:03:07]} Qxa3 {[%emt 0:11:36]} 18. Bb5 {[%emt 0:04:16]} Qb3 {[%emt 0:11:26]} (18... Ne7 $11) 19. Qxb3 $16 {[%emt 0:01:08]} Bxb3 {[%emt 0:00:04]} 20. Bxc6 {[%emt 0:00:06]} bxc6 {[%emt 0:00:06]} 21. Rxc6 {[%emt 0:00:19]} Bd5 {[%emt 0:03:50]} (21... Rd6 $16 22. Rc5 Rd5) 22. Rc5 $18 {[%emt 0:00:38]} h4 {[%emt 0:02:15]} 23. g4 {[%emt 0:03:13]} Rh6 {[%emt 0:00:44]} 24. e4 {[%emt 0:00:38]} Bb7 {[%emt 0:00:39]} 25. Rhc1 {[%emt 0:00:22]} ({Much less strong is} 25. Rxg5 Ba6 26. d5 Bxe2 $18) 25... Kd7 $2 {[%emt 0:03:26] Weighted Error Value: White=0.06 (flawless) /Black=0.21 (precise) .  Mistake:       	White=1     	Black=3      Inaccurate:     	---       	Black=1      OK:         	White=9     	Black=7} (25... Rb6 26. Rxc7+ (26. Rxg5 Ba6 $18) 26... Kb8 27. Rxf7 Rb2) 1-0

[Event "VIII Open Semana Santa 2024"]
[Site "San Vicente del Raspeig"]
[Date "2024.03.28"]
[Round "3.15"]
[White "Boder, Jan"]
[Black "Agmanov, Zhandos"]
[Result "1/2-1/2"]
[ECO "E06"]
[WhiteElo "2328"]
[BlackElo "2458"]
[Annotator "RC"]
[PlyCount "74"]
[EventDate "2024.03.27"]
[EventType "swiss"]
[EventCountry "ESP"]
[SourceTitle "playchess.com"]
[Source "ChessBase"]
[SourceQuality "1"]
[TimeControl "5400+30"]

1. c4 {[%emt 0:02:20]} Nf6 {[%emt 0:00:12]} 2. g3 {[%emt 0:00:05]} e6 {[%emt 0:00:13]} 3. Nf3 {[%emt 0:00:07]} d5 {[%emt 0:00:08]} 4. Bg2 {[%emt 0:00:05]} Be7 {[%emt 0:00:11]} 5. d4 {[%emt 0:00:26]} O-O {[%emt 0:00:16]} 6. O-O {[%emt 0:00:08]} c6 {[%emt 0:01:03]} 7. Nc3 {[%emt 0:00:14]} a5 {[%emt 0:00:40]} 8. b3 {[%emt 0:09:08]} b6 {[%emt 0:00:20]} 9. Qd3 {[%emt 0:01:03]} Ba6 {[%emt 0:00:35]} 10. Rd1 {[%emt 0:12:29]} b5 {[%emt 0:05:26]} 11. cxb5 {[%emt 0:03:46]} cxb5 {[%emt 0:00:05]} 12. Nxb5 {[%emt 0:01:13]} Nc6 {[%emt 0:01:32]} 13. a4 {[%emt 0:04:28]} Nb4 {[%emt 0:16:56]} 14. Qb1 {[%emt 0:01:08]} Bxb5 {[%emt 0:07:42]} 15. axb5 {[%emt 0:00:13]} Qb6 {[%emt 0:00:20]} 16. Ne5 {[%emt 0:06:18]} Qxb5 {[%emt 0:01:54]} 17. e3 {[%emt 0:00:31]} Rfc8 {[%emt 0:05:01]} 18. Ba3 {[%emt 0:06:35]} Rc3 {[%emt 0:09:09]} 19. Rc1 {[%emt 0:17:05]} Rac8 {[%emt 0:02:56]} 20. Rxc3 {[%emt 0:03:58]} Rxc3 {[%emt 0:00:07]} 21. Qd1 {[%emt 0:00:15]} Nc2 {[%emt 0:14:07]} 22. Bxe7 {[%emt 0:01:30]} Nxa1 {[%emt 0:00:03]} 23. Bf1 {[%emt 0:02:45]} Qxb3 {[%emt 0:00:05]} 24. Qxa1 {[%emt 0:00:29]} a4 {[%emt 0:00:14]} 25. Bxf6 {[%emt 0:04:52]} gxf6 {[%emt 0:00:15]} 26. Nd7 {[%emt 0:00:14]} a3 {[%emt 0:01:20]} 27. e4 {[%emt 0:13:03]} Rf3 {[%emt 0:14:16]} 28. Qc1 {[%emt 0:01:11]} Qb7 {[%emt 0:07:00]} 29. Nxf6+ {[%emt 0:04:52]} Rxf6 {[%emt 0:00:10]} 30. e5 {[%emt 0:00:02]} Rg6 {[%emt 0:02:34]} 31. Qxa3 {[%emt 0:00:29]} Qb1 {[%emt 0:01:17]} 32. Qe3 {[%emt 0:00:19]} Rg4 {[%emt 0:01:57]} 33. h3 {[%emt 0:00:07]} Rg7 {[%emt 0:02:07]} 34. Kg2 {[%emt 0:00:02]} Qe4+ {[%emt 0:02:36]} 35. Qxe4 {[%emt 0:01:01]} dxe4 {[%emt 0:00:02]} 36. Bb5 {[%emt 0:00:04]} Kh8 {[%emt 0:00:23]} 37. Be8 {[%emt 0:01:44]} Kg8 {[%emt 0:04:30]} 1/2-1/2

[Event "VIII Open Semana Santa 2024"]
[Site "San Vicente del Raspeig"]
[Date "2024.03.28"]
[Round "3.16"]
[White "Marin, Mihail"]
[Black "Lazaro Pujol, Abel"]
[Result "1/2-1/2"]
[ECO "E01"]
[WhiteElo "2456"]
[BlackElo "2309"]
[Annotator "TA"]
[PlyCount "85"]
[EventDate "2024.03.27"]
[EventType "swiss"]
[EventCountry "ESP"]
[SourceTitle "playchess.com"]
[Source "ChessBase"]
[SourceQuality "1"]
[TimeControl "5400+30"]

{[%evp 15,85,7,10,7,73,14,32,0,0,0,0,0,12,14,9,0,6,8,16,10,13,0,0,0,9,5,9,0,16,0,5,0,0,0,0,-145,0,-19,0,0,0,0,0,0,0,0,0,0,0,0,0,0,0,0,0,0,0,0,0,0,0,0,0,0,0,0,0,0,0,0,0,0]} 1. Nf3 {[%emt 0:00:03]} d5 {[%emt 0:02:28]} 2. g3 {[%emt 0:00:04]} c5 {[%emt 0:00:54]} 3. Bg2 {[%emt 0:00:06]} Nc6 {[%emt 0:00:17]} 4. d4 {[%emt 0:00:10]} e6 {[%emt 0:00:50]} 5. O-O {[%emt 0:00:09]} cxd4 {[%emt 0:00:24]} 6. Nxd4 {[%emt 0:00:07]} Bc5 {[%emt 0:00:08]} 7. Nxc6 {[%emt 0:02:49]} bxc6 {[%emt 0:00:16]} 8. c4 {[%emt 0:00:05]} Nf6 {[%emt 0:00:19]} 9. Qc2 {[%emt 0:01:15]} Qe7 {[%emt 0:01:05] [#]} (9... Nd7 $11) 10. Bg5 {[%emt 0:20:47]} (10. cxd5 $1 $16 {Be3 is the strong threat.} cxd5 11. Be3 (11. b4 Bd4 $11) 11... Bxe3 12. Qc6+ Qd7 13. Qxa8) 10... O-O {[%emt 0:03:09]} 11. e4 {[%emt 0:06:09] Hoping for e5. White is slightly better.} h6 {[%emt 0:05:56]} 12. Bxf6 {[%emt 0:01:50]} Qxf6 {[%emt 0:00:11]} 13. exd5 {[%emt 0:05:16]} cxd5 {[%emt 0:10:21]} 14. cxd5 {[%emt 0:00:17]} Bd4 {[%emt 0:00:07]} 15. Nc3 {[%emt 0:00:08] Strongly threatening dxe6.} e5 {[%emt 0:00:14]} 16. Rac1 {[%emt 0:11:57]} Ba6 {[%emt 0:12:54] This pair of bishops is nice.} 17. Rfd1 {[%emt 0:00:21]} Rac8 {[%emt 0:01:08]} 18. Qd2 {[%emt 0:00:07]} Qb6 {[%emt 0:13:44]} (18... Rfd8 {looks sharper.} 19. b4 Bc4 20. Ne4 Qf5) 19. Rc2 {[%emt 0:09:08]} Rfd8 {[%emt 0:06:42]} 20. Rdc1 {[%emt 0:03:58]} Bb7 {[%emt 0:07:07]} 21. Qe2 {[%emt 0:04:02]} a5 {[%emt 0:05:34]} 22. b3 {[%emt 0:02:10]} Qb4 {[%emt 0:03:39]} 23. Na4 {[%emt 0:00:59]} Rxc2 {[%emt 0:00:55]} 24. Rxc2 {[%emt 0:01:09]} g6 {[%emt 0:02:58]} 25. Rc4 {[%emt 0:01:28] White is weak on the dark squares} (25. h4 $11 {remains equal.}) 25... Qd6 {[%emt 0:01:54]} (25... Ba6 $17 26. Rxb4 Bxe2) 26. Qf3 {[%emt 0:06:13] The position is equal.} Bxd5 {[%emt 0:03:15]} 27. Qxd5 {[%emt 0:00:14]} Qxd5 {[%emt 0:00:06]} 28. Bxd5 {[%emt 0:00:03]} Rxd5 $11 {[%emt 0:00:08][%mdl 4096] Endgame. KRB-KRN} 29. Kf1 {[%emt 0:03:36]} Kg7 {[%emt 0:04:49]} 30. Ke2 {[%emt 0:00:17]} Kf6 {[%emt 0:00:29]} 31. Nc3 {[%emt 0:00:31]} Bxc3 {[%emt 0:01:26]} 32. Rxc3 {[%emt 0:00:09] KR-KR} Kf5 {[%emt 0:03:33]} 33. Rc4 {[%emt 0:02:55]} h5 {[%emt 0:00:46]} 34. h4 {[%emt 0:00:10]} f6 {[%emt 0:01:50]} 35. a3 {[%emt 0:05:05]} e4 {[%emt 0:01:54]} 36. a4 {[%emt 0:03:24]} g5 {[%emt 0:01:48]} 37. hxg5 {[%emt 0:00:23]} fxg5 {[%emt 0:00:23]} 38. b4 {[%emt 0:00:13]} axb4 {[%emt 0:00:18]} 39. Rxb4 {[%emt 0:00:05] [#] Black must now prevent Rb5.} Rd3 {[%emt 0:00:43]} 40. Rb5+ {[%emt 0:01:26]} Kf6 {[%emt 0:00:22]} 41. Rb6+ {[%emt 0:01:57]} Kf5 {[%emt 0:00:08]} 42. Rb5+ {[%emt 0:00:20]} Kf6 {[%emt 0:00:12]} 43. Rb6+ {[%emt 0:00:39] Weighted Error Value: White=0.16 (very precise) /Black=0.14 (very precise) .  Mistake:       	White=2     	Black=2      Inaccurate:     	White=1     	---        OK:         	White=13    	Black=17     Best:        	---       	Black=1} 1/2-1/2

[Event "VIII Open Semana Santa 2024"]
[Site "San Vicente del Raspeig"]
[Date "2024.03.28"]
[Round "3.17"]
[White "Carbonell Sancho, Marc"]
[Black "Shuvalova, Polina"]
[Result "1/2-1/2"]
[ECO "A00"]
[WhiteElo "2304"]
[BlackElo "2455"]
[Annotator "RC"]
[PlyCount "72"]
[EventDate "2024.03.27"]
[EventType "swiss"]
[EventCountry "ESP"]
[SourceTitle "playchess.com"]
[Source "ChessBase"]
[SourceQuality "1"]
[TimeControl "5400+30"]

1. Nf3 {[%emt 0:12:31]} d5 {[%emt 0:00:15]} 2. g3 {[%emt 0:00:07]} Nd7 {[%emt 0:00:15]} 3. Bg2 {[%emt 0:00:21]} e5 {[%emt 0:00:08]} 4. d3 {[%emt 0:00:12]} Ngf6 {[%emt 0:00:15]} 5. O-O {[%emt 0:00:11]} Bd6 {[%emt 0:01:54]} 6. Nc3 {[%emt 0:00:23]} O-O {[%emt 0:01:26]} 7. e4 {[%emt 0:00:12]} c6 {[%emt 0:03:43]} 8. h3 {[%emt 0:01:18]} Re8 {[%emt 0:02:44]} 9. Nh4 {[%emt 0:02:20]} dxe4 {[%emt 0:06:47]} 10. dxe4 {[%emt 0:00:06]} Nf8 {[%emt 0:00:23]} 11. Nf5 {[%emt 0:04:59]} Bxf5 {[%emt 0:05:12]} 12. exf5 {[%emt 0:02:07]} h6 {[%emt 0:00:33]} 13. Be3 {[%emt 0:02:48]} N8h7 {[%emt 0:09:45]} 14. a3 {[%emt 0:11:49]} e4 {[%emt 0:04:37]} 15. Re1 {[%emt 0:07:23]} Qc7 {[%emt 0:00:28]} 16. Qe2 {[%emt 0:11:48]} Qa5 {[%emt 0:03:21]} 17. Qd2 {[%emt 0:02:29]} Bc7 {[%emt 0:04:11]} 18. Bf4 {[%emt 0:00:32]} Rad8 {[%emt 0:04:07]} 19. Qc1 {[%emt 0:00:56]} Bxf4 {[%emt 0:06:40]} 20. Qxf4 {[%emt 0:00:06]} Nd5 {[%emt 0:00:03]} 21. Nxd5 {[%emt 0:00:32]} cxd5 {[%emt 0:00:04]} 22. c4 {[%emt 0:00:15]} dxc4 {[%emt 0:00:59]} 23. Rxe4 {[%emt 0:00:48]} Rxe4 {[%emt 0:00:53]} 24. Qxe4 {[%emt 0:00:14]} b5 {[%emt 0:00:25]} 25. a4 {[%emt 0:14:11]} Nf6 {[%emt 0:02:57]} 26. Qe5 {[%emt 0:00:05]} a6 {[%emt 0:00:17]} 27. g4 {[%emt 0:00:29]} Rd2 {[%emt 0:06:57]} 28. Qc3 {[%emt 0:01:42]} Qd8 {[%emt 0:08:34]} 29. axb5 {[%emt 0:03:10]} Rd1+ {[%emt 0:01:02]} 30. Rxd1 {[%emt 0:00:05]} Qxd1+ {[%emt 0:00:02]} 31. Kh2 {[%emt 0:00:10]} axb5 {[%emt 0:01:03]} 32. Qb4 {[%emt 0:00:45]} Qd7 {[%emt 0:00:07]} 33. Qc5 {[%emt 0:00:17]} Qd2 {[%emt 0:05:09]} 34. Qxb5 {[%emt 0:00:31]} Qxf2 {[%emt 0:00:11]} 35. Qxc4 {[%emt 0:00:17]} Qxb2 {[%emt 0:00:06]} 36. Qf4 {[%emt 0:00:22]} Qe2 {[%emt 0:00:34]} 1/2-1/2

[Event "VIII Open Semana Santa 2024"]
[Site "San Vicente del Raspeig"]
[Date "2024.03.28"]
[Round "3.18"]
[White "Ghazarian, Kirk"]
[Black "Filip, Andrei"]
[Result "1/2-1/2"]
[ECO "E04"]
[WhiteElo "2454"]
[BlackElo "2289"]
[Annotator "TA"]
[PlyCount "48"]
[EventDate "2024.03.27"]
[EventType "swiss"]
[EventCountry "ESP"]
[SourceTitle "playchess.com"]
[Source "ChessBase"]
[SourceQuality "1"]
[TimeControl "5400+30"]

{[%evp 14,48,50,59,50,61,36,57,50,65,53,44,54,57,83,70,67,49,77,101,77,27,23,23,33,-12,-12,0,-9,-8,14,8,24,28,36,13,23]} 1. d4 {[%emt 0:00:42]} Nf6 {[%emt 0:00:15]} 2. c4 {[%emt 0:00:56]} e6 {[%emt 0:00:57]} 3. Nf3 {[%emt 0:00:42]} d5 {[%emt 0:00:11]} 4. g3 {[%emt 0:00:07]} dxc4 {[%emt 0:01:15]} 5. Bg2 {[%emt 0:00:19]} a6 {[%emt 0:00:26]} 6. O-O {[%emt 0:00:47]} Nc6 {[%emt 0:00:08]} 7. e3 {[%emt 0:02:28]} Rb8 {[%emt 0:00:59]} 8. Nfd2 {[%emt 0:00:06]} e5 {[%emt 0:00:07]} 9. Bxc6+ {[%emt 0:00:06]} bxc6 {[%emt 0:00:04]} 10. dxe5 {[%emt 0:00:06]} Ng4 {[%emt 0:00:05] White is slightly better.} 11. Nxc4 {[%emt 0:00:22] Qxd8+ is the strong threat.} Be6 {[%emt 0:01:58] [#] Strongly threatening ...Qxd1.} 12. Nbd2 {[%emt 0:00:10]} Bb4 {[%emt 0:02:57]} 13. b3 {[%emt 0:00:17]} Bc3 {[%emt 0:07:58][%csl LRa1,LRe5]} 14. Rb1 {[%emt 0:21:37]} Bxd2 {[%emt 0:29:19]} 15. Nxd2 {[%emt 0:01:53] aiming for Bb2.} Nxe5 {[%emt 0:00:50]} 16. Bb2 {[%emt 0:12:39]} Rb5 {[%emt 0:07:24][%cal Od8d2] [#] Threatens to win with ...Qxd2!} 17. Nc4 {[%emt 0:07:08]} Nxc4 $11 {[%emt 0:14:37]} 18. bxc4 {[%emt 0:03:35]} Bxc4 {[%emt 0:03:10]} 19. Qxd8+ {[%emt 0:23:02]} (19. a4 $5 Rb6 20. Qg4 (20. Bxg7 Rg8 $16) 20... Bxf1 21. Rd1 $11 (21. Qxg7 Rf8 $11)) 19... Kxd8 {[%emt 0:00:05]} 20. Rfd1+ {[%emt 0:00:27]} Kc8 {[%emt 0:02:13]} 21. a4 {[%emt 0:00:46]} (21. Bxg7 Rg8 22. Bc3 Rxb1 (22... Bxa2 23. Ra1 $17) 23. Rxb1 Bxa2) 21... Ra5 {[%emt 0:10:31][%cal Oh8g8]} 22. Bxg7 {[%emt 0:00:37]} Rg8 {[%emt 0:00:13]} 23. Rb4 {[%emt 0:02:06]} Be2 {[%emt 0:02:09]} 24. Re1 {[%emt 0:04:58]} Bd3 {[%emt 0:03:04] Weighted Error Value: White=0.10 (very precise) /Black=0.07 (flawless) .  Mistake:       	White=1     	---        Inaccurate:     	White=1     	Black=2      OK:         	White=6     	Black=8      Best:        	White=3     	---} 1/2-1/2

[Event "VIII Open Semana Santa 2024"]
[Site "San Vicente del Raspeig"]
[Date "2024.03.28"]
[Round "3.19"]
[White "Romero Pallares, Daniel"]
[Black "Muthaiah AL"]
[Result "1/2-1/2"]
[ECO "B48"]
[WhiteElo "2291"]
[BlackElo "2454"]
[Annotator "TA"]
[PlyCount "93"]
[EventDate "2024.03.27"]
[EventType "swiss"]
[EventCountry "ESP"]
[SourceTitle "playchess.com"]
[Source "ChessBase"]
[SourceQuality "1"]
[TimeControl "5400+30"]

{[%evp 14,93,35,33,53,52,39,47,55,55,94,56,63,51,98,12,92,55,108,106,106,101,110,100,111,105,115,94,102,69,85,63,62,27,19,19,23,25,25,25,26,27,27,27,27,27,27,27,27,27,27,27,27,27,27,27,27,27,27,27,27,27,27,27,27,31,33,33,33,33,33,33,33,0,0,0,0,0,0,0,0,0]} 1. e4 {[%emt 0:00:05]} c5 {[%emt 0:01:08]} 2. Nf3 {[%emt 0:00:17]} e6 {[%emt 0:00:31]} 3. d4 {[%emt 0:00:09]} cxd4 {[%emt 0:00:25]} 4. Nxd4 {[%emt 0:00:08]} Nc6 {[%emt 0:00:30]} 5. a3 {[%emt 0:00:18]} Nf6 {[%emt 0:02:10]} 6. Nc3 {[%emt 0:00:28]} Qc7 {[%emt 0:01:50]} 7. Be3 {[%emt 0:09:15]} a6 {[%emt 0:01:32]} 8. f4 {[%emt 0:03:48]} Nxd4 {[%emt 0:13:24]} 9. Bxd4 {[%emt 0:01:30]} Qxf4 {[%emt 0:04:12]} 10. g3 {[%emt 0:01:08]} Qc7 {[%emt 0:13:28] White is slightly better.} 11. e5 {[%emt 0:00:36]} Nd5 {[%emt 0:01:45]} 12. Nxd5 {[%emt 0:01:47]} exd5 {[%emt 0:00:08]} 13. Bg2 {[%emt 0:02:36]} d6 {[%emt 0:00:50] [#]} (13... Bc5 $1 $14 {deserves consideration.}) 14. O-O {[%emt 0:27:06]} (14. Qe2 $1 $16 Be6 15. O-O-O) 14... Be6 {[%emt 0:04:31]} (14... dxe5 $11 15. Bxe5 (15. Bxd5 $2 exd4 16. Qh5 g6 $19) 15... Qxe5) 15. exd6 $16 {[%emt 0:03:10]} Bxd6 {[%emt 0:05:18]} (15... Qxd6 $14 16. Qh5 O-O-O) 16. Bxg7 {[%emt 0:03:03]} Rg8 {[%emt 0:00:11]} 17. Bf6 {[%emt 0:05:47] Active counter play!} Be7 {[%emt 0:08:32]} 18. Bxe7 {[%emt 0:07:04]} (18. Bxd5 Qc5+ 19. Rf2 Qxd5 $19 (19... Bxd5 $2 20. Bxe7 Kxe7 21. Qh5 $19)) 18... Qxe7 {[%emt 0:02:38]} 19. Qd4 {[%emt 0:00:45][%cal Oa1e1]} (19. Bxd5 $2 {loses.} Qc5+ 20. Rf2 Qxd5 $19) 19... O-O-O {[%emt 0:03:30]} 20. Rae1 {[%emt 0:04:36][%cal Ba1e1,Be1e3,Be3e5][%mdl 32]} Kb8 {[%emt 0:01:32] Inhibits Qa7+.} 21. Re3 {[%emt 0:07:29] Black is weak on the dark squares} Qd6 {[%emt 0:03:49]} 22. Rf4 {[%emt 0:04:01]} Rc8 {[%emt 0:01:20]} 23. c3 {[%emt 0:00:49]} Rc4 {[%emt 0:04:48]} 24. Qe5 {[%emt 0:03:41]} Qxe5 {[%emt 0:04:06]} 25. Rxe5 {[%emt 0:01:08]} Rxf4 {[%emt 0:00:56]} 26. gxf4 $11 {[%emt 0:00:02][%mdl 4096] Endgame. KRB-KRB} Rg4 {[%emt 0:01:13]} 27. f5 {[%emt 0:06:17]} Rg5 {[%emt 0:00:41]} 28. h4 {[%emt 0:04:25]} Rxf5 {[%emt 0:00:48]} 29. Rxf5 {[%emt 0:00:08]} Bxf5 {[%emt 0:00:06]} 30. Bxd5 {[%emt 0:00:07][%cal Og1h2] Strongly threatening Kh2! KB-KB} Be6 {[%emt 0:03:24]} 31. Be4 {[%emt 0:03:11]} h6 {[%emt 0:01:45]} 32. Kf2 {[%emt 0:00:10] aiming for Kg3.} Kc7 {[%emt 0:00:20]} 33. Ke3 {[%emt 0:00:12] Threatens to win with Kf4.} b6 {[%emt 0:00:10]} 34. Kd4 {[%emt 0:01:08] Ke5 would now be deadly.} f6 {[%emt 0:00:54]} 35. b4 {[%emt 0:01:04][%cal Bb2b4,Bb4c5][%mdl 32]} Kd6 {[%emt 0:02:48]} 36. c4 {[%emt 0:00:18]} a5 {[%emt 0:00:14]} 37. c5+ {[%emt 0:00:40]} bxc5+ {[%emt 0:00:28]} 38. bxc5+ {[%emt 0:00:02]} Kc7 {[%emt 0:00:28]} 39. Ke3 {[%emt 0:00:44]} Bd7 {[%emt 0:03:35]} 40. Kf4 {[%emt 0:00:20]} Be6 {[%emt 0:00:22]} 41. Bg2 {[%emt 0:00:37]} Bd7 {[%emt 0:00:30]} 42. Bf3 {[%emt 0:00:12]} Be6 {[%emt 0:03:37]} 43. h5 {[%emt 0:01:05]} Bd7 {[%emt 0:02:17] The position is equal.} 44. Bg4 {[%emt 0:00:29]} Bb5 {[%emt 0:00:09]} 45. Bf3 {[%emt 0:00:27] [#] Kf5 is the strong threat.} Bd7 {[%emt 0:00:08]} 46. Bg4 {[%emt 0:00:30] White threatens Bxd7 and mate.} Bb5 {[%emt 0:00:08]} 47. Bf3 {[%emt 0:00:03] Weighted Error Value: White=0.11 (very precise) /Black=0.09 (flawless) .  Mistake:       	White=1     	Black=3      Inaccurate:     	White=4     	Black=1      OK:         	White=14    	Black=21     Best:        	White=3     	Black=4} 1/2-1/2

[Event "VIII Open Semana Santa 2024"]
[Site "San Vicente del Raspeig"]
[Date "2024.03.28"]
[Round "3.20"]
[White "Schulman, Julia"]
[Black "Jimenez Fernandez, Rebeca"]
[Result "0-1"]
[ECO "B36"]
[WhiteElo "1732"]
[BlackElo "2052"]
[Annotator "RC"]
[PlyCount "112"]
[EventDate "2024.03.27"]
[EventType "swiss"]
[EventCountry "ESP"]
[SourceTitle "playchess.com"]
[Source "ChessBase"]
[SourceQuality "1"]
[TimeControl "5400+30"]

1. e4 {[%emt 0:00:30]} c5 {[%emt 0:02:30]} 2. Nf3 {[%emt 0:00:09]} Nc6 {[%emt 0:00:12]} 3. d4 {[%emt 0:00:11]} cxd4 {[%emt 0:00:05]} 4. Nxd4 {[%emt 0:00:05]} g6 {[%emt 0:00:05]} 5. c4 {[%emt 0:00:29]} Nf6 {[%emt 0:00:23]} 6. Nc3 {[%emt 0:00:47]} d6 {[%emt 0:00:05]} 7. Be2 {[%emt 0:02:01]} Nxd4 {[%emt 0:00:04]} 8. Qxd4 {[%emt 0:00:12]} Bg7 {[%emt 0:00:03]} 9. O-O {[%emt 0:01:42]} O-O {[%emt 0:00:20]} 10. Qd1 {[%emt 0:01:33]} Be6 {[%emt 0:03:05]} 11. Rb1 {[%emt 0:04:52]} Rc8 {[%emt 0:10:57]} 12. b3 {[%emt 0:01:49]} b5 {[%emt 0:08:12]} 13. Nxb5 {[%emt 0:11:22]} Nxe4 {[%emt 0:03:25]} 14. Bb2 {[%emt 0:01:31]} Bxb2 {[%emt 0:13:04]} 15. Rxb2 {[%emt 0:00:07]} Qb6 {[%emt 0:04:18]} 16. Qd4 {[%emt 0:07:58]} Qxd4 {[%emt 0:11:24]} 17. Nxd4 {[%emt 0:00:09]} Bd7 {[%emt 0:00:46]} 18. h3 {[%emt 0:09:53]} Nc5 {[%emt 0:04:24]} 19. Rd1 {[%emt 0:04:51]} Rc7 {[%emt 0:02:29]} 20. Nb5 {[%emt 0:02:12]} Bxb5 {[%emt 0:01:40]} 21. cxb5 {[%emt 0:00:06]} Ne4 {[%emt 0:02:53]} 22. Bc4 {[%emt 0:01:46]} Rfc8 {[%emt 0:03:32]} 23. Rd4 {[%emt 0:09:12]} Nf6 {[%emt 0:01:49]} 24. Rbd2 {[%emt 0:02:44]} Nd7 {[%emt 0:01:41]} 25. a4 {[%emt 0:02:23]} Nb6 {[%emt 0:03:23]} 26. Be2 {[%emt 0:02:40]} Rc1+ {[%emt 0:01:35]} 27. Kh2 {[%emt 0:00:08]} Rb1 {[%emt 0:01:10]} 28. a5 {[%emt 0:00:52]} Nd7 {[%emt 0:01:49]} 29. Rc4 {[%emt 0:03:18]} Rxc4 {[%emt 0:02:20]} 30. bxc4 {[%emt 0:00:21]} Ra1 {[%emt 0:00:22]} 31. a6 {[%emt 0:01:13]} Rc1 {[%emt 0:00:32]} 32. Ra2 {[%emt 0:04:21]} Rc3 {[%emt 0:03:06]} 33. g3 {[%emt 0:02:08]} Nb6 {[%emt 0:01:12]} 34. Kg2 {[%emt 0:01:02]} Kf8 {[%emt 0:02:00]} 35. Kf1 {[%emt 0:02:01]} Rc1+ {[%emt 0:00:12]} 36. Kg2 {[%emt 0:00:14]} Rc3 {[%emt 0:01:23]} 37. Kf1 {[%emt 0:00:30]} Rc1+ {[%emt 0:00:10]} 38. Kg2 {[%emt 0:22:08]} e5 {[%emt 0:00:21]} 39. Bd3 {[%emt 0:00:00]} Rc3 {[%emt 0:00:22]} 40. Be2 {[%emt 0:00:00]} Ke7 {[%emt 0:00:09]} 41. Kf1 {[%emt 0:00:00]} Rc1+ {[%emt 0:00:06]} 42. Kg2 {[%emt 0:00:00]} Kd7 {[%emt 0:01:17]} 43. h4 {[%emt 0:00:00]} Kc7 {[%emt 0:01:15]} 44. Bf3 {[%emt 0:00:00]} Rxc4 {[%emt 0:00:38]} 45. Be2 {[%emt 0:00:00]} Rc3 {[%emt 0:00:53]} 46. Bd1 {[%emt 0:00:00]} d5 {[%emt 0:02:52]} 47. Rc2 {[%emt 0:00:00]} Rxc2 {[%emt 0:00:57]} 48. Bxc2 {[%emt 0:00:00]} Kd6 {[%emt 0:00:08]} 49. g4 {[%emt 0:00:00]} Kc5 {[%emt 0:00:52]} 50. Bd3 {[%emt 0:00:00]} Nc4 {[%emt 0:01:08]} 51. h5 {[%emt 0:00:00]} Kxb5 {[%emt 0:01:11]} 52. Kg3 {[%emt 0:00:01]} Kc5 {[%emt 0:04:02]} 53. f3 {[%emt 0:00:51]} Kd4 {[%emt 0:00:22]} 54. Bb1 {[%emt 0:00:46]} Kc3 {[%emt 0:01:36]} 55. Kf2 {[%emt 0:02:32]} d4 {[%emt 0:00:29]} 56. Ke2 {[%emt 0:00:36]} Nb2 {[%emt 0:00:10]} 0-1